[Event "Early-Titled-Tuesday-Blitz-October-24-2023"]
[Site "Chess.com"]
[Date "2023.10.24"]
[Round "9"]
[White "Sjakkerntobi"]
[Black "SashaKuzhilniy"]
[Result "0-1"]
[WhiteElo "2497"]
[BlackElo "2651"]
[TimeControl "180+1"]
[EndTime "9:42:54 PDT"]
[Termination "SashaKuzhilniy won by resignation"]

1. e4 {[%clk 0:03:00.9]} 1... g6 {[%clk 0:02:59.8]} 2. d4 {[%clk 0:03:00.6]}
2... Bg7 {[%clk 0:03:00.1]} 3. Nc3 {[%clk 0:03:01.5]} 3... d6 {[%clk 0:03:00.2]}
4. Be3 {[%clk 0:03:01.3]} 4... a6 {[%clk 0:02:59.7]} 5. Qd2 {[%clk 0:02:59.8]}
5... b5 {[%clk 0:02:59.5]} 6. a3 {[%clk 0:02:59.6]} 6... Nd7 {[%clk 0:02:56.1]}
7. h4 {[%clk 0:02:58.8]} 7... Ngf6 {[%clk 0:02:55.6]} 8. f3 {[%clk 0:02:57.9]}
8... c5 {[%clk 0:02:55.5]} 9. Nge2 {[%clk 0:02:52.5]} 9... cxd4 {[%clk
0:02:52.9]} 10. Nxd4 {[%clk 0:02:52.8]} 10... Bb7 {[%clk 0:02:53]} 11. O-O-O
{[%clk 0:02:50.9]} 11... h5 {[%clk 0:02:52.9]} 12. Bd3 {[%clk 0:02:48.9]} 12...
Rc8 {[%clk 0:02:51.1]} 13. Rhe1 {[%clk 0:02:46.9]} 13... Nb6 {[%clk 0:02:45]}
14. Bg5 {[%clk 0:02:46.4]} 14... Nc4 {[%clk 0:02:40.2]} 15. Bxc4 {[%clk
0:02:46.5]} 15... Rxc4 {[%clk 0:02:41]} 16. f4 {[%clk 0:02:36.5]} 16... Ng4
{[%clk 0:02:22.4]} 17. e5 {[%clk 0:01:28.9]} 17... dxe5 {[%clk 0:02:23.3]} 18.
fxe5 {[%clk 0:01:28.7]} 18... Bxe5 {[%clk 0:02:20.7]} 19. Nb3 {[%clk 0:01:24.1]}
19... Qxd2+ {[%clk 0:02:19.3]} 20. Rxd2 {[%clk 0:01:25]} 20... Rxc3 {[%clk
0:02:11.3]} 21. bxc3 {[%clk 0:01:23.1]} 21... O-O {[%clk 0:02:08.2]} 22. Bxe7
{[%clk 0:01:16]} 22... Re8 {[%clk 0:02:02.6]} 23. Rd8 {[%clk 0:01:15]} 23...
Rxd8 {[%clk 0:02:00.4]} 24. Bxd8 {[%clk 0:01:15.5]} 24... Bxg2 {[%clk
0:01:59.5]} 25. Nd4 {[%clk 0:01:10.6]} 25... f6 {[%clk 0:01:48.6]} 26. Kd2
{[%clk 0:00:45.2]} 26... Kf7 {[%clk 0:01:46.5]} 27. a4 {[%clk 0:00:31]} 27... b4
{[%clk 0:01:42.5]} 28. Ba5 {[%clk 0:00:27]} 28... bxc3+ {[%clk 0:01:41.4]} 29.
Bxc3 {[%clk 0:00:27.6]} 29... g5 {[%clk 0:01:35.2]} 30. hxg5 {[%clk 0:00:27.4]}
30... fxg5 {[%clk 0:01:36.1]} 31. Rg1 {[%clk 0:00:25.8]} 31... Bd5 {[%clk
0:01:32.6]} 32. Ne2 {[%clk 0:00:23.2]} 32... Bh2 {[%clk 0:01:29.4]} 33. Rf1+
{[%clk 0:00:22.2]} 33... Kg6 {[%clk 0:01:30]} 34. Bd4 {[%clk 0:00:20.1]} 34...
h4 {[%clk 0:01:28.2]} 35. Bg1 {[%clk 0:00:20.2]} 35... Be5 {[%clk 0:01:27.1]}
36. Bd4 {[%clk 0:00:18.4]} 36... Bd6 {[%clk 0:01:26.3]} 37. Kd3 {[%clk
0:00:17.7]} 37... h3 {[%clk 0:01:22.9]} 38. c4 {[%clk 0:00:18.1]} 38... Bg2
{[%clk 0:01:22.6]} 39. Rb1 {[%clk 0:00:17.1]} 39... h2 {[%clk 0:01:21.2]} 40. c5
{[%clk 0:00:15.2]} 40... Bc7 {[%clk 0:01:20.4]} 41. Nc3 {[%clk 0:00:08.5]} 41...
h1=Q {[%clk 0:01:19.5]} 42. Rxh1 {[%clk 0:00:08.8]} 42... Bxh1 {[%clk
0:01:20.4]} 43. Kc4 {[%clk 0:00:08.4]} 43... Nf6 {[%clk 0:01:16.3]} 44. Be3
{[%clk 0:00:04.6]} 44... Kf5 {[%clk 0:01:14.9]} 45. Bxg5 {[%clk 0:00:04.8]}
45... Kxg5 {[%clk 0:01:14.4]} 46. Na2 {[%clk 0:00:03.3]} 46... Bd5+ {[%clk
0:01:13.3]} 47. Kb4 {[%clk 0:00:03.4]} 47... Bxa2 {[%clk 0:01:13.6]} 48. a5
{[%clk 0:00:04.3]} 48... Kf5 {[%clk 0:01:12.7]} 49. c6 {[%clk 0:00:05.2]} 49...
Bd5 {[%clk 0:01:12]} 50. Kc5 {[%clk 0:00:06.1]} 50... Ke6 {[%clk 0:01:12.5]} 51.
Kb4 {[%clk 0:00:06.4]} 51... Bxc6 {[%clk 0:01:12.9]} 52. Kc5 {[%clk 0:00:07.3]}
52... Bb5 {[%clk 0:01:13.5]} 53. Kb4 {[%clk 0:00:08.1]} 53... Nd5+ {[%clk
0:01:13.6]} 54. Ka3 {[%clk 0:00:08.6]} 54... Bxa5 {[%clk 0:01:14.2]} 55. Kb3
{[%clk 0:00:09.5]} 55... Bc3 {[%clk 0:01:05.6]} 56. Ka3 {[%clk 0:00:10.4]} 56...
Bb4+ {[%clk 0:01:02.7]} 57. Kb3 {[%clk 0:00:11.3]} 57... a5 {[%clk 0:01:02.5]}
58. Ka2 {[%clk 0:00:12.2]} 58... a4 {[%clk 0:01:02.6]} 59. Kb2 {[%clk
0:00:13.1]} 59... Bc4 {[%clk 0:01:01.7]} 60. Kb1 {[%clk 0:00:13.4]} 60... Bc3
{[%clk 0:01:00.8]} 61. Kc2 {[%clk 0:00:13.7]} 61... a3 {[%clk 0:01:01.1]} 62.
Kc1 {[%clk 0:00:12.5]} 62... a2 {[%clk 0:01:00.8]} 63. Kc2 {[%clk 0:00:12.8]}
63... Ke5 {[%clk 0:01:00]} 64. Kd1 {[%clk 0:00:12.6]} 64... a1=Q+ {[%clk
0:01:00.2]} 65. Kc2 {[%clk 0:00:13.4]} 0-1

[Event "Early-Titled-Tuesday-Blitz-October-24-2023"]
[Site "Chess.com"]
[Date "2023.10.24"]
[Round "9"]
[White "oggy1984"]
[Black "El_Matador12"]
[Result "1-0"]
[WhiteElo "2454"]
[BlackElo "2547"]
[TimeControl "180+1"]
[EndTime "9:42:54 PDT"]
[Termination "oggy1984 won by resignation"]

1. d4 {[%clk 0:03:00.9]} 1... Nf6 {[%clk 0:02:59]} 2. c4 {[%clk 0:03:00.8]} 2...
g6 {[%clk 0:02:58.4]} 3. Nc3 {[%clk 0:03:00.1]} 3... d5 {[%clk 0:02:56.4]} 4.
Nf3 {[%clk 0:02:59.2]} 4... Bg7 {[%clk 0:02:56.1]} 5. Qb3 {[%clk 0:02:59.3]}
5... c6 {[%clk 0:02:56]} 6. Bf4 {[%clk 0:02:56]} 6... O-O {[%clk 0:02:53.4]} 7.
e3 {[%clk 0:02:55.7]} 7... a6 {[%clk 0:02:50.8]} 8. cxd5 {[%clk 0:02:44]} 8...
cxd5 {[%clk 0:02:50.5]} 9. Bxb8 {[%clk 0:02:39.3]} 9... Rxb8 {[%clk 0:02:50.1]}
10. Bxa6 {[%clk 0:02:38.9]} 10... Qa5 {[%clk 0:02:04.7]} 11. Bd3 {[%clk
0:02:30.1]} 11... b5 {[%clk 0:02:00.9]} 12. O-O {[%clk 0:02:12.8]} 12... b4
{[%clk 0:02:00.7]} 13. Ne2 {[%clk 0:02:11.1]} 13... Ne4 {[%clk 0:01:43.4]} 14.
Bxe4 {[%clk 0:01:56.9]} 14... dxe4 {[%clk 0:01:41]} 15. Nd2 {[%clk 0:01:55.8]}
15... Be6 {[%clk 0:01:36.6]} 16. Qc2 {[%clk 0:01:55]} 16... f5 {[%clk
0:01:21.7]} 17. Nf4 {[%clk 0:01:37.2]} 17... Bf7 {[%clk 0:01:19.7]} 18. Nc4
{[%clk 0:01:26.8]} 18... Qa6 {[%clk 0:01:00.7]} 19. b3 {[%clk 0:01:26.6]} 19...
g5 {[%clk 0:01:00.8]} 20. Ne2 {[%clk 0:01:23]} 20... Rfc8 {[%clk 0:01:01.3]} 21.
Rfc1 {[%clk 0:01:17.5]} 21... e5 {[%clk 0:01:01]} 22. dxe5 {[%clk 0:00:53]}
22... Bxe5 {[%clk 0:01:00.1]} 23. Rab1 {[%clk 0:00:52.4]} 23... Qh6 {[%clk
0:00:53.9]} 24. Ng3 {[%clk 0:00:44.7]} 24... Be6 {[%clk 0:00:53.4]} 25. Qe2
{[%clk 0:00:41.7]} 25... Bc3 {[%clk 0:00:42.8]} 26. a4 {[%clk 0:00:32.4]} 26...
Rd8 {[%clk 0:00:39.9]} 27. Rd1 {[%clk 0:00:30.9]} 27... Qf6 {[%clk 0:00:36.2]}
28. Nh5 {[%clk 0:00:26.5]} 28... Qf7 {[%clk 0:00:32.4]} 29. g4 {[%clk
0:00:26.2]} 29... fxg4 {[%clk 0:00:20]} 30. Ng3 {[%clk 0:00:25.1]} 30... h5
{[%clk 0:00:16.6]} 31. Nxe4 {[%clk 0:00:21.8]} 31... Qg6 {[%clk 0:00:15.6]} 32.
Nxc3 {[%clk 0:00:17]} 32... bxc3 {[%clk 0:00:15.4]} 33. Rxd8+ {[%clk 0:00:15.9]}
33... Rxd8 {[%clk 0:00:14.5]} 34. Rc1 {[%clk 0:00:16.5]} 34... Rd2 {[%clk
0:00:11]} 35. Nxd2 {[%clk 0:00:13.9]} 35... cxd2 {[%clk 0:00:11]} 36. Qxd2
{[%clk 0:00:14.8]} 36... Qe4 {[%clk 0:00:10.9]} 37. Qd8+ {[%clk 0:00:11.9]}
37... Kf7 {[%clk 0:00:11.2]} 38. Qxg5 {[%clk 0:00:11.1]} 38... Bd5 {[%clk
0:00:11.4]} 39. Qf4+ {[%clk 0:00:11.2]} 39... Qxf4 {[%clk 0:00:11.2]} 40. exf4
{[%clk 0:00:12.1]} 40... Bxb3 {[%clk 0:00:12]} 41. a5 {[%clk 0:00:12.7]} 41...
Bd5 {[%clk 0:00:12.7]} 42. a6 {[%clk 0:00:12.6]} 42... Ke6 {[%clk 0:00:13.2]}
43. a7 {[%clk 0:00:12.6]} 43... Bf3 {[%clk 0:00:13.2]} 1-0

[Event "Early-Titled-Tuesday-Blitz-October-24-2023"]
[Site "Chess.com"]
[Date "2023.10.24"]
[Round "9"]
[White "jaskol95"]
[Black "victormago"]
[Result "1-0"]
[WhiteElo "2559"]
[BlackElo "2420"]
[TimeControl "180+1"]
[EndTime "9:42:55 PDT"]
[Termination "jaskol95 won on time"]

1. e4 {[%clk 0:03:00.9]} 1... c5 {[%clk 0:02:57.7]} 2. Nf3 {[%clk 0:03:01.4]}
2... d6 {[%clk 0:02:57.3]} 3. Bb5+ {[%clk 0:03:00.9]} 3... Bd7 {[%clk
0:02:56.1]} 4. a4 {[%clk 0:03:00.9]} 4... Nf6 {[%clk 0:02:54]} 5. Nc3 {[%clk
0:03:00.6]} 5... g6 {[%clk 0:02:52.7]} 6. O-O {[%clk 0:02:57.1]} 6... Bg7 {[%clk
0:02:52.8]} 7. Re1 {[%clk 0:02:57.7]} 7... O-O {[%clk 0:02:52.5]} 8. d3 {[%clk
0:02:51.9]} 8... Bg4 {[%clk 0:02:49.9]} 9. h3 {[%clk 0:02:50.4]} 9... Bxf3
{[%clk 0:02:48]} 10. Qxf3 {[%clk 0:02:50.1]} 10... a6 {[%clk 0:02:48.9]} 11. Bc4
{[%clk 0:02:50]} 11... Nc6 {[%clk 0:02:48.6]} 12. Qd1 {[%clk 0:02:43.5]} 12...
e6 {[%clk 0:02:41.5]} 13. Bf4 {[%clk 0:02:39.3]} 13... d5 {[%clk 0:02:28.9]} 14.
exd5 {[%clk 0:02:37.4]} 14... exd5 {[%clk 0:02:26.5]} 15. Ba2 {[%clk 0:02:37.4]}
15... h6 {[%clk 0:02:25.1]} 16. Ne2 {[%clk 0:02:26.8]} 16... Qd7 {[%clk
0:02:20.3]} 17. c3 {[%clk 0:02:24.2]} 17... Rfe8 {[%clk 0:02:18]} 18. Qd2 {[%clk
0:02:19.7]} 18... Kh7 {[%clk 0:02:15.9]} 19. Ng3 {[%clk 0:02:14.8]} 19... b5
{[%clk 0:02:07.5]} 20. Bb3 {[%clk 0:02:07.3]} 20... d4 {[%clk 0:02:01.1]} 21.
axb5 {[%clk 0:01:38.2]} 21... axb5 {[%clk 0:01:59.1]} 22. Rxa8 {[%clk
0:01:38.1]} 22... Rxa8 {[%clk 0:01:57.7]} 23. Ne4 {[%clk 0:01:38.7]} 23... dxc3
{[%clk 0:01:48.4]} 24. bxc3 {[%clk 0:01:33.3]} 24... Nxe4 {[%clk 0:01:41.9]} 25.
Rxe4 {[%clk 0:01:29.8]} 25... b4 {[%clk 0:01:36.2]} 26. cxb4 {[%clk 0:01:26.9]}
26... Nxb4 {[%clk 0:01:31.5]} 27. Bc4 {[%clk 0:01:26.3]} 27... f5 {[%clk
0:01:28.7]} 28. Re6 {[%clk 0:01:21.7]} 28... Re8 {[%clk 0:01:09]} 29. Rd6 {[%clk
0:01:12.5]} 29... Qe7 {[%clk 0:00:59.4]} 30. Kf1 {[%clk 0:00:35.7]} 30... g5
{[%clk 0:00:51]} 31. Re6 {[%clk 0:00:36]} 31... Qd7 {[%clk 0:00:49]} 32. Rxe8
{[%clk 0:00:32.8]} 32... Qxe8 {[%clk 0:00:48.8]} 33. Be3 {[%clk 0:00:32.3]}
33... Qe7 {[%clk 0:00:43.1]} 34. g3 {[%clk 0:00:28.7]} 34... Nc6 {[%clk
0:00:36.3]} 35. Qa2 {[%clk 0:00:23.2]} 35... Nd4 {[%clk 0:00:26]} 36. Qa8 {[%clk
0:00:22.5]} 36... Kg6 {[%clk 0:00:21.2]} 37. Qg8 {[%clk 0:00:21.2]} 37... f4
{[%clk 0:00:15.6]} 38. gxf4 {[%clk 0:00:17.2]} 38... gxf4 {[%clk 0:00:15.3]} 39.
Bxd4 {[%clk 0:00:12.7]} 39... cxd4 {[%clk 0:00:14.8]} 40. Qd5 {[%clk 0:00:12.4]}
40... Qh4 {[%clk 0:00:09.2]} 41. Qe4+ {[%clk 0:00:12.2]} 41... Kg5 {[%clk
0:00:05.1]} 42. Qg2+ {[%clk 0:00:07]} 42... Kf6 {[%clk 0:00:04.3]} 43. Qc6+
{[%clk 0:00:07.5]} 43... Kg5 {[%clk 0:00:04.3]} 44. Qd5+ {[%clk 0:00:07.7]}
44... Kf6 {[%clk 0:00:04]} 45. Qf7+ {[%clk 0:00:06.8]} 1-0

[Event "Early-Titled-Tuesday-Blitz-October-24-2023"]
[Site "Chess.com"]
[Date "2023.10.24"]
[Round "9"]
[White "JuniorJumper"]
[Black "JoliyRoger"]
[Result "1-0"]
[WhiteElo "2620"]
[BlackElo "2470"]
[TimeControl "180+1"]
[EndTime "9:42:56 PDT"]
[Termination "JuniorJumper won by resignation"]

1. d4 {[%clk 0:02:53.6]} 1... Nf6 {[%clk 0:03:00]} 2. c4 {[%clk 0:02:53.7]} 2...
e6 {[%clk 0:03:00.3]} 3. Nc3 {[%clk 0:02:54.2]} 3... Bb4 {[%clk 0:03:00.8]} 4.
Bd2 {[%clk 0:02:54.7]} 4... c5 {[%clk 0:03:00.8]} 5. a3 {[%clk 0:02:53.6]} 5...
Bxc3 {[%clk 0:03:00.8]} 6. Bxc3 {[%clk 0:02:54.1]} 6... cxd4 {[%clk 0:02:58.7]}
7. Qxd4 {[%clk 0:02:40.8]} 7... Nc6 {[%clk 0:02:58.5]} 8. Qh4 {[%clk 0:02:41.2]}
8... O-O {[%clk 0:02:35]} 9. Bxf6 {[%clk 0:02:39.1]} 9... Qxf6 {[%clk 0:02:33]}
10. Qxf6 {[%clk 0:02:39.6]} 10... gxf6 {[%clk 0:02:33.7]} 11. Rd1 {[%clk
0:02:32]} 11... b6 {[%clk 0:02:19.4]} 12. g3 {[%clk 0:02:32]} 12... Rd8 {[%clk
0:02:19.2]} 13. Bg2 {[%clk 0:02:32.1]} 13... Bb7 {[%clk 0:02:19.9]} 14. Nh3
{[%clk 0:02:00.8]} 14... Rac8 {[%clk 0:02:15]} 15. O-O {[%clk 0:01:59.7]} 15...
Kf8 {[%clk 0:02:15.5]} 16. Nf4 {[%clk 0:01:47]} 16... Ke7 {[%clk 0:02:13.9]} 17.
Nd5+ {[%clk 0:01:46.2]} 17... exd5 {[%clk 0:01:59]} 18. cxd5 {[%clk 0:01:47.1]}
18... Ba6 {[%clk 0:01:24.8]} 19. dxc6 {[%clk 0:01:44]} 19... dxc6 {[%clk
0:01:25.1]} 20. Rxd8 {[%clk 0:01:44.7]} 20... Rxd8 {[%clk 0:01:25.4]} 21. Bxc6
{[%clk 0:01:44.7]} 21... Rd2 {[%clk 0:01:25.9]} 22. b4 {[%clk 0:01:32.7]} 22...
Bxe2 {[%clk 0:01:16.5]} 23. Re1 {[%clk 0:01:26.7]} 23... Rd1 {[%clk 0:01:16.9]}
24. Rxd1 {[%clk 0:01:23.8]} 24... Bxd1 {[%clk 0:01:17.8]} 25. Kf1 {[%clk
0:01:18.3]} 25... h6 {[%clk 0:01:12.4]} 26. Ke1 {[%clk 0:01:17.9]} 26... Bb3
{[%clk 0:01:07.8]} 27. Kd2 {[%clk 0:01:18.3]} 27... Kd6 {[%clk 0:01:08.4]} 28.
Be8 {[%clk 0:01:12.3]} 28... Ke7 {[%clk 0:01:06.1]} 29. Bb5 {[%clk 0:01:11.5]}
29... Kd6 {[%clk 0:01:06.3]} 30. Kc3 {[%clk 0:01:11.9]} 30... Be6 {[%clk
0:01:00.9]} 31. Bc4 {[%clk 0:01:11]} 31... Ke5 {[%clk 0:00:53.3]} 32. Bd3 {[%clk
0:01:11.7]} 32... Bd5 {[%clk 0:00:51.5]} 33. f4+ {[%clk 0:01:10.5]} 33... Kd6
{[%clk 0:00:50.6]} 34. Kd4 {[%clk 0:01:11.4]} 34... Be6 {[%clk 0:00:48.1]} 35.
Be4 {[%clk 0:01:12]} 35... Bb3 {[%clk 0:00:38.6]} 36. h4 {[%clk 0:01:11.1]}
36... Be6 {[%clk 0:00:38.1]} 37. Bf3 {[%clk 0:01:10.8]} 37... Bb3 {[%clk
0:00:38.3]} 38. Bg4 {[%clk 0:01:02.2]} 38... Bd5 {[%clk 0:00:36.1]} 39. Bf5
{[%clk 0:01:01.8]} 39... Bb3 {[%clk 0:00:36.5]} 40. g4 {[%clk 0:01:01.8]} 40...
Ba2 {[%clk 0:00:34.7]} 41. g5 {[%clk 0:01:00.1]} 41... hxg5 {[%clk 0:00:34.5]}
42. h5 {[%clk 0:00:58.4]} 42... Ke7 {[%clk 0:00:28.9]} 43. h6 {[%clk 0:00:56.7]}
43... Kf8 {[%clk 0:00:29.2]} 44. fxg5 {[%clk 0:00:55.6]} 44... fxg5 {[%clk
0:00:29.4]} 45. Ke5 {[%clk 0:00:56.5]} 45... Be6 {[%clk 0:00:13.5]} 46. Bxe6
{[%clk 0:00:44.6]} 46... fxe6 {[%clk 0:00:13.4]} 47. Kf6 {[%clk 0:00:45.3]}
47... Kg8 {[%clk 0:00:11.6]} 48. Kxg5 {[%clk 0:00:45.3]} 48... Kf7 {[%clk
0:00:10.2]} 49. b5 {[%clk 0:00:40.7]} 49... e5 {[%clk 0:00:06.5]} 50. Kf5 {[%clk
0:00:40.8]} 50... e4 {[%clk 0:00:07.3]} 51. Kxe4 {[%clk 0:00:41.1]} 51... Kg6
{[%clk 0:00:08.2]} 52. Kd5 {[%clk 0:00:41.3]} 52... Kxh6 {[%clk 0:00:09.1]} 53.
Kc6 {[%clk 0:00:42]} 53... Kg6 {[%clk 0:00:09.8]} 54. Kb7 {[%clk 0:00:42.6]}
54... Kf6 {[%clk 0:00:10.7]} 55. Kxa7 {[%clk 0:00:43.3]} 1-0

[Event "Early-Titled-Tuesday-Blitz-October-24-2023"]
[Site "Chess.com"]
[Date "2023.10.24"]
[Round "9"]
[White "Lennis93"]
[Black "Oleksandr_Bortnyk"]
[Result "0-1"]
[WhiteElo "2739"]
[BlackElo "3021"]
[TimeControl "180+1"]
[EndTime "9:42:58 PDT"]
[Termination "Oleksandr_Bortnyk won by resignation"]

1. e4 {[%clk 0:03:00.9]} 1... Nf6 {[%clk 0:02:59.1]} 2. e5 {[%clk 0:03:00.8]}
2... Nd5 {[%clk 0:02:59.4]} 3. Nf3 {[%clk 0:03:01.5]} 3... d6 {[%clk 0:02:59.7]}
4. d4 {[%clk 0:03:02.1]} 4... dxe5 {[%clk 0:03:00.3]} 5. Nxe5 {[%clk 0:03:02.9]}
5... c6 {[%clk 0:03:01]} 6. Be2 {[%clk 0:02:57.8]} 6... Bf5 {[%clk 0:03:00.6]}
7. O-O {[%clk 0:02:57.4]} 7... Nd7 {[%clk 0:03:00.6]} 8. Nd3 {[%clk 0:02:53.3]}
8... e6 {[%clk 0:03:00.8]} 9. c3 {[%clk 0:02:53.4]} 9... Bd6 {[%clk 0:03:00.5]}
10. Nd2 {[%clk 0:02:52.7]} 10... O-O {[%clk 0:02:53.7]} 11. Nc4 {[%clk
0:02:52.5]} 11... Bc7 {[%clk 0:02:53.3]} 12. a4 {[%clk 0:02:44.5]} 12... Re8
{[%clk 0:02:27.9]} 13. f4 {[%clk 0:02:37.5]} 13... h6 {[%clk 0:02:24.1]} 14. a5
{[%clk 0:02:29.9]} 14... c5 {[%clk 0:02:10.9]} 15. Nxc5 {[%clk 0:02:29.4]} 15...
Nxc5 {[%clk 0:02:11.2]} 16. dxc5 {[%clk 0:02:29.7]} 16... Qe7 {[%clk 0:02:12.1]}
17. Qd4 {[%clk 0:02:26.9]} 17... Red8 {[%clk 0:02:03.7]} 18. Qf2 {[%clk
0:02:26.5]} 18... Nf6 {[%clk 0:02:03.3]} 19. b4 {[%clk 0:02:13.9]} 19... Rd7
{[%clk 0:00:49.8]} 20. Be3 {[%clk 0:02:12.1]} 20... Ne4 {[%clk 0:00:27.1]} 21.
Qe1 {[%clk 0:02:11.5]} 21... Qf6 {[%clk 0:00:27.7]} 22. Bd4 {[%clk 0:02:05.8]}
22... Rxd4 {[%clk 0:00:27.7]} 23. cxd4 {[%clk 0:02:06.7]} 23... Qxd4+ {[%clk
0:00:28.4]} 24. Kh1 {[%clk 0:02:06.9]} 24... Nc3 {[%clk 0:00:27.5]} 25. Ne5
{[%clk 0:01:46.3]} 25... Qxb4 {[%clk 0:00:19.5]} 26. Bf3 {[%clk 0:01:30.6]}
26... Rb8 {[%clk 0:00:08.2]} 27. c6 {[%clk 0:01:23.7]} 27... Qxf4 {[%clk
0:00:08.4]} 28. Qxc3 {[%clk 0:00:18.8]} 28... Bxe5 {[%clk 0:00:08.6]} 29. g3
{[%clk 0:00:19.3]} 29... Bxc3 {[%clk 0:00:07.1]} 30. gxf4 {[%clk 0:00:19.9]}
30... Bxa1 {[%clk 0:00:07.4]} 31. cxb7 {[%clk 0:00:20.4]} 31... Bc3 {[%clk
0:00:04]} 32. a6 {[%clk 0:00:20]} 32... Bd3 {[%clk 0:00:03.9]} 33. Rc1 {[%clk
0:00:19.5]} 33... Bxa6 {[%clk 0:00:04.5]} 34. Rxc3 {[%clk 0:00:19.1]} 34... Bxb7
{[%clk 0:00:05.2]} 35. Kg2 {[%clk 0:00:13.6]} 35... Bxf3+ {[%clk 0:00:05]} 36.
Kxf3 {[%clk 0:00:14.5]} 36... g6 {[%clk 0:00:04.7]} 37. Ra3 {[%clk 0:00:15.4]}
37... Rb7 {[%clk 0:00:05.1]} 38. Ra6 {[%clk 0:00:15.9]} 38... Kg7 {[%clk
0:00:05.5]} 39. h4 {[%clk 0:00:16.5]} 39... h5 {[%clk 0:00:05.7]} 40. Ke4 {[%clk
0:00:17.1]} 40... Kf6 {[%clk 0:00:06.4]} 41. Ke3 {[%clk 0:00:17.4]} 41... Kf5
{[%clk 0:00:06.3]} 42. Ra5+ {[%clk 0:00:13.3]} 42... Kg4 {[%clk 0:00:06.5]} 43.
Rg5+ {[%clk 0:00:13.5]} 43... Kxh4 {[%clk 0:00:07]} 44. Rg1 {[%clk 0:00:13.7]}
44... Rb3+ {[%clk 0:00:06.9]} 45. Ke4 {[%clk 0:00:14.1]} 45... a5 {[%clk
0:00:03.8]} 46. f5 {[%clk 0:00:14.2]} 46... exf5+ {[%clk 0:00:03.6]} 47. Kf4
{[%clk 0:00:15.1]} 47... Rb4+ {[%clk 0:00:04.1]} 48. Ke5 {[%clk 0:00:15.5]}
48... Rg4 {[%clk 0:00:04.6]} 49. Kf6 {[%clk 0:00:16.4]} 49... Rxg1 {[%clk
0:00:04.5]} 0-1

[Event "Early-Titled-Tuesday-Blitz-October-24-2023"]
[Site "Chess.com"]
[Date "2023.10.24"]
[Round "9"]
[White "deribas12345"]
[Black "FlemingA"]
[Result "1-0"]
[WhiteElo "2580"]
[BlackElo "2441"]
[TimeControl "180+1"]
[EndTime "9:42:58 PDT"]
[Termination "deribas12345 won by checkmate"]

1. d4 {[%clk 0:02:56.8]} 1... e6 {[%clk 0:02:59.7]} 2. c4 {[%clk 0:02:55.7]}
2... c5 {[%clk 0:02:59.8]} 3. d5 {[%clk 0:02:55.3]} 3... b5 {[%clk 0:03:00.3]}
4. e4 {[%clk 0:02:53.9]} 4... exd5 {[%clk 0:02:56]} 5. cxd5 {[%clk 0:02:51.6]}
5... a6 {[%clk 0:02:54.3]} 6. a4 {[%clk 0:02:51.2]} 6... b4 {[%clk 0:02:53.9]}
7. Nf3 {[%clk 0:02:50.5]} 7... d6 {[%clk 0:02:54.4]} 8. Nbd2 {[%clk 0:02:48.2]}
8... g6 {[%clk 0:02:53.7]} 9. Bd3 {[%clk 0:02:47.3]} 9... Bg7 {[%clk 0:02:53.9]}
10. O-O {[%clk 0:02:47.5]} 10... Nf6 {[%clk 0:02:52]} 11. Nc4 {[%clk 0:02:47.3]}
11... O-O {[%clk 0:02:38.6]} 12. a5 {[%clk 0:02:44.8]} 12... Re8 {[%clk
0:02:37.4]} 13. Re1 {[%clk 0:02:42.9]} 13... Bg4 {[%clk 0:02:36.8]} 14. Bf4
{[%clk 0:02:41]} 14... Bf8 {[%clk 0:02:25.4]} 15. h3 {[%clk 0:02:37.1]} 15...
Bxf3 {[%clk 0:02:18.1]} 16. Qxf3 {[%clk 0:02:38]} 16... Nh5 {[%clk 0:02:18.4]}
17. Bh2 {[%clk 0:02:32]} 17... f6 {[%clk 0:01:56.8]} 18. g4 {[%clk 0:02:16.9]}
18... Ng7 {[%clk 0:01:56.2]} 19. b3 {[%clk 0:02:05]} 19... Qc7 {[%clk 0:01:50]}
20. Qxf6 {[%clk 0:02:01.4]} 20... Be7 {[%clk 0:01:44.7]} 21. Qb2 {[%clk
0:01:49.8]} 21... Nd7 {[%clk 0:01:43.3]} 22. e5 {[%clk 0:01:47.3]} 22... dxe5
{[%clk 0:01:41.2]} 23. Rxe5 {[%clk 0:01:45.1]} 23... Nxe5 {[%clk 0:01:33.2]} 24.
Bxe5 {[%clk 0:01:42.9]} 24... Qd7 {[%clk 0:01:30.4]} 25. Bxg7 {[%clk 0:01:38.8]}
25... Qxd5 {[%clk 0:01:30.4]} 26. Bf1 {[%clk 0:01:31]} 26... Bh4 {[%clk
0:01:23.5]} 27. Bg2 {[%clk 0:01:25.2]} 27... Qf7 {[%clk 0:01:22.8]} 28. Bxa8
{[%clk 0:01:23]} 28... Rxa8 {[%clk 0:01:19.8]} 29. Re1 {[%clk 0:01:20.8]} 29...
Qxg7 {[%clk 0:01:12.7]} 30. Qxg7+ {[%clk 0:01:15.8]} 30... Kxg7 {[%clk
0:01:13.6]} 31. Re6 {[%clk 0:01:14.8]} 31... Rf8 {[%clk 0:01:02.2]} 32. Rxa6
{[%clk 0:01:11.2]} 32... Bxf2+ {[%clk 0:00:43.4]} 33. Kh1 {[%clk 0:01:09]} 33...
Bd4 {[%clk 0:00:44.3]} 34. Ra7+ {[%clk 0:01:08.9]} 34... Kh6 {[%clk 0:00:44.4]}
35. h4 {[%clk 0:01:07.4]} 35... Rf3 {[%clk 0:00:40.5]} 36. a6 {[%clk 0:01:03.6]}
36... Rxb3 {[%clk 0:00:40.6]} 37. Kg2 {[%clk 0:00:52.6]} 37... Rc3 {[%clk
0:00:33.7]} 38. Nd6 {[%clk 0:00:50.5]} 38... Rc2+ {[%clk 0:00:32.5]} 39. Kf3
{[%clk 0:00:48.6]} 39... Rc3+ {[%clk 0:00:28.3]} 40. Ke4 {[%clk 0:00:47.3]}
40... g5 {[%clk 0:00:11.1]} 41. h5 {[%clk 0:00:42.3]} 41... Re3+ {[%clk
0:00:09.9]} 42. Kd5 {[%clk 0:00:38.9]} 42... Re5+ {[%clk 0:00:08.8]} 43. Kc4
{[%clk 0:00:39.1]} 43... b3 {[%clk 0:00:02.6]} 44. Nf7+ {[%clk 0:00:28.2]} 44...
Kg7 {[%clk 0:00:02.7]} 45. Nxe5+ {[%clk 0:00:29.1]} 45... Kf6 {[%clk 0:00:03.3]}
46. Nd3 {[%clk 0:00:25.6]} 46... b2 {[%clk 0:00:02.9]} 47. Nxb2 {[%clk
0:00:25.5]} 47... Bxb2 {[%clk 0:00:03.8]} 48. Rb7 {[%clk 0:00:25.2]} 48... Ke5
{[%clk 0:00:04.7]} 49. a7 {[%clk 0:00:25.4]} 49... Bd4 {[%clk 0:00:05.5]} 50.
a8=Q {[%clk 0:00:25.4]} 50... Ke4 {[%clk 0:00:06.4]} 51. Rxh7+ {[%clk
0:00:24.8]} 51... Kf4 {[%clk 0:00:07.3]} 52. Rf7+ {[%clk 0:00:24.2]} 52... Kxg4
{[%clk 0:00:08.2]} 53. Qe4+ {[%clk 0:00:23.5]} 53... Kxh5 {[%clk 0:00:09.1]} 54.
Rh7# {[%clk 0:00:23]} 1-0